fUST/lending_fUST_20260114
["ID","MTS","AMOUNT","RATE_DAILY","PERIOD"]
[401798632,1768378250732,-3000.0,0.0002109,2]
[401798634,1768378250740,-3000.0,0.000211,2]
[401798636,1768378250750,-3000.0,0.0002111,2]
[401798638,1768378250759,-3000.0,0.0002112,2]
[401798640,1768378250768,-8341.07421263,0.00021127,2]
[401798642,1768378250777,-3000.0,0.0002113,2]
[401798644,1768378250786,-3000.0,0.0002114,2]
[401798646,1768378250795,-3000.0,0.0002115,2]
[401798648,1768378250804,-3000.0,0.0002116,2]
[401798650,1768378250813,-3000.0,0.0002117,2]
[401798652,1768378250822,-3000.0,0.0002118,2]
[401798654,1768378250831,-12381.49049326,0.00021183,2]
[401798656,1768378250840,-3000.0,0.0002119,2]
[401798658,1768378250850,-3000.0,0.000212,2]
[401798660,1768378250858,-3000.0,0.0002121,2]
[401798662,1768378250869,-3000.0,0.0002122,2]
[401798664,1768378250878,-3000.0,0.0002123,2]
[401798666,1768378250887,-3000.0,0.0002124,2]
[401798668,1768378250897,-3000.0,0.0002125,2]
[401798670,1768378250908,-3000.0,0.0002126,2]
[401798672,1768378250917,-3000.0,0.0002127,2]
[401798674,1768378250926,-3000.0,0.0002128,2]
[401798676,1768378250936,-3000.0,0.0002129,2]
[401798678,1768378250945,-3000.0,0.000213,2]
[401798680,1768378250954,-3000.0,0.0002131,2]
[401798682,1768378250962,-3000.0,0.0002132,2]
[401798684,1768378250972,-3000.0,0.0002133,2]
[401798686,1768378250982,-3000.0,0.0002134,2]
[401798688,1768378250991,-3000.0,0.0002135,2]
[401798690,1768378251002,-4427.0,0.00021359,2]
[401798692,1768378251011,-3000.0,0.0002136,2]
[401798694,1768378251020,-550.0,0.0002137,2]
[401798696,1768378251029,-7500.0,0.0002137,2]
[401798698,1768378251039,-3000.0,0.0002137,2]
[401798700,1768378251050,-3000.0,0.0002138,2]
[401798701,1768378251059,-3000.0,0.0002139,2]
[401798703,1768378251067,-3000.0,0.000214,2]
[401798705,1768378251078,-1665.51,0.000214,2]
[401798707,1768378251087,-3000.0,0.0002141,2]
[401798709,1768378251096,-3000.0,0.0002142,2]
[401798711,1768378251105,-4716.661967,0.0002143,2]
[401798713,1768378251114,-253.24,0.000215,2]
[401798715,1768378251122,-267.88,0.000215,2]
[401798717,1768378251131,-2000.0,0.00021589,7]
[401798719,1768378251140,-500.0,0.00021688,2]
[401798721,1768378251149,-453.8287473,0.00021688,2]
[401798723,1768378251158,-559.52204836,0.00021688,2]
[401798725,1768378251167,-500.0,0.00021688,2]
[401798727,1768378251177,-800.23,0.00021688,2]
[401798729,1768378251186,-500.0,0.00021688,2]
[401798731,1768378251195,-500.0,0.00021688,2]
[401798733,1768378251205,-589.28,0.00021688,2]
[401798735,1768378251214,-500.0,0.00021688,2]
[401798737,1768378251223,-491.12165105,0.00021725,24]
[401798739,1768378251231,-4037.037714,0.00021759,7]
[401798741,1768378251241,-6055.556571,0.00021765,7]
[401798743,1768378251250,-2000.0,0.00021795,3]
[401798745,1768378251260,-2000.0,0.00021804,3]
[401798747,1768378251269,-2000.0,0.00021812,3]
[401798749,1768378251279,-2000.0,0.00021821,3]
[401798751,1768378251288,-2000.0,0.0002183,3]
[401798753,1768378251298,-2000.0,0.00021839,3]
[401798755,1768378251307,-2000.0,0.00021848,3]
[401798757,1768378251317,-2000.0,0.00021856,3]
[401798759,1768378251327,-2000.0,0.00021865,3]
[401798761,1768378251337,-2000.0,0.00021874,3]
[401798763,1768378251346,-2000.0,0.00021883,3]
[401798765,1768378251355,-2000.0,0.00021892,3]
[401798767,1768378251364,-1665.51,0.000219,2]
[401798769,1768378251374,-2000.0,0.000219,3]
[401798771,1768378251384,-2000.0,0.00021909,3]
[401798773,1768378251393,-2297.615063,0.00021918,2]
[401798775,1768378251403,-2297.615063,0.00021918,2]
[401798777,1768378251412,-240.755518,0.00021918,2]
[401798779,1768378251422,-237.361203,0.00021918,2]
[401798781,1768378251432,-237.361203,0.00021918,2]
[401798783,1768378251441,-237.361203,0.00021918,2]
[401798785,1768378251450,-152.928665,0.00021918,2]
[401798787,1768378251459,-237.361203,0.00021918,2]
[401798789,1768378251468,-151.0,0.00021918,2]
[401798791,1768378251477,-151.0,0.00021918,2]
[401798793,1768378251486,-275.55471384,0.00021918,2]
[401798794,1768378251495,-151.0,0.00021918,2]
[401798796,1768378251505,-151.0,0.00021918,2]
[401798798,1768378251513,-151.0,0.00021918,2]
[401798800,1768378251522,-151.0,0.00021918,2]
[401798802,1768378251532,-151.0,0.00021918,2]
[401798804,1768378251542,-151.0,0.00021918,2]
[401798806,1768378251551,-230.012904,0.00021918,2]
[401798808,1768378251561,-879.438014,0.00021918,2]
[401798810,1768378251572,-879.438014,0.00021918,2]
[401798812,1768378251580,-879.438014,0.00021918,2]
[401798814,1768378251590,-879.438014,0.00021918,2]
[401798816,1768378251599,-406.316369,0.00021918,2]
[401798827,1768378251683,-406.316369,0.00021918,2]
[401798829,1768378251700,-406.316369,0.00021918,2]
[401798831,1768378251709,-406.316369,0.00021918,2]
[401798833,1768378251719,-839.619726,0.00021918,2]
[401798835,1768378251728,-839.619726,0.00021918,2]
[401798837,1768378251737,-839.619726,0.00021918,2]
[401798839,1768378251747,-839.619726,0.00021918,2]
[401798841,1768378251755,-151.0,0.00021918,2]
[401798842,1768378251764,-151.0,0.00021918,2]
[401798844,1768378251773,-151.0,0.00021918,2]
[401798846,1768378251783,-151.0,0.00021918,2]
[401798848,1768378251793,-151.3487,0.00021918,2]
[401798850,1768378251802,-151.0,0.00021918,2]
[401798852,1768378251812,-151.3487,0.00021918,2]
[401798854,1768378251821,-151.0,0.00021918,2]
[401798856,1768378251830,-151.3487,0.00021918,2]
[401798858,1768378251840,-151.3487,0.00021918,2]
[401798860,1768378251849,-1200.0,0.00021918,2]
[401798863,1768378251858,-650.0,0.00021918,2]
[401798864,1768378251867,-8000.0,0.00021918,2]
[401798866,1768378251876,-2000.0,0.00021918,3]
[401798868,1768378251885,-151.0,0.00021918,2]
[401798870,1768378251895,-190.428635,0.00021918,2]
[401798872,1768378251904,-190.428635,0.00021918,2]
[401798874,1768378251913,-190.428635,0.00021918,2]
[401798876,1768378251922,-190.428635,0.00021918,2]
[401798878,1768378251931,-151.0,0.00021918,2]
[401798880,1768378251940,-151.0,0.00021918,2]
[401798882,1768378251949,-228.779396,0.00021918,2]
[401798884,1768378251958,-701.437556,0.00021918,2]
[401798886,1768378251967,-701.437556,0.00021918,2]
[401798888,1768378251977,-701.437556,0.00021918,2]
[401798890,1768378251986,-701.437556,0.00021918,2]
[401798892,1768378252000,-151.0,0.00021918,2]
[401798894,1768378252009,-1591.0092294,0.00021918,3]
[401798896,1768378252019,-7319.48933576,0.00021941,2]
[401798898,1768378252028,-208.47503537,0.00021945,2]
[401798900,1768378252038,-14150.53090947,0.00021995,2]
[401798902,1768378252047,-2113.56,0.00022,7]
[401798904,1768378252056,-1000.0,0.00022007,10]
[401798906,1768378252066,-1000.0,0.00022007,10]
[401798908,1768378252077,-579.0,0.00022007,10]
[401798910,1768378252087,-151.0,0.00022007,2]
[401798912,1768378252097,-151.0,0.00022007,2]
[401798914,1768378252107,-180.50802,0.00022007,2]
[401798916,1768378252116,-181.655666,0.00022007,2]
[401798918,1768378252125,-151.0,0.00022007,2]
[401798920,1768378252134,-151.0,0.00022007,2]
[401798922,1768378252143,-151.0,0.00022007,2]
[401798924,1768378252152,-151.0,0.00022007,2]
[401798926,1768378252161,-487.891031,0.00022007,2]
[401798928,1768378252170,-487.891031,0.00022007,2]
[401798930,1768378252179,-487.891031,0.00022007,2]
[401798932,1768378252188,-487.891031,0.00022007,2]
[401798934,1768378252197,-417.0,0.00022029,2]
[401798936,1768378252206,-417.0,0.00022029,2]
[401798938,1768378252215,-715.0,0.00022029,2]
[401798940,1768378252224,-178.0,0.00022029,2]
[401798942,1768378252233,-1395.76995996,0.00022032,2]
[401798944,1768378252242,-244.16776,0.00022097,30]
[401798946,1768378252251,-40340.44,0.000221,2]
[401798948,1768378252260,-4046.54,0.000221,14]
[401798950,1768378252268,-167.76,0.000221,7]
[401798952,1768378252278,-151.0,0.000221,2]
[401798953,1768378252287,-490.347103,0.000221,2]
[401798955,1768378252297,-490.347103,0.000221,2]
[401798957,1768378252310,-490.347103,0.000221,2]
[401798959,1768378252319,-151.0,0.000221,2]
[401798961,1768378252328,-490.347103,0.000221,2]
[401798963,1768378252337,-490.971226,0.000221,2]
[401798965,1768378252346,-490.971226,0.000221,2]
[401798967,1768378252355,-151.0,0.000221,2]
[401798969,1768378252364,-490.971226,0.000221,2]
[401798971,1768378252373,-151.0,0.000221,2]
[401798973,1768378252382,-490.971226,0.000221,2]
[401798975,1768378252391,-505.094065,0.000221,2]
[401798977,1768378252400,-505.094065,0.000221,2]
[401798979,1768378252409,-505.094065,0.000221,2]
[401798981,1768378252418,-505.094065,0.000221,2]
[401798983,1768378252427,-778.0,0.000222,2]
[401798985,1768378252436,-1060.1,0.00022271,2]
[401798987,1768378252445,-491.12165105,0.00022397,26]
[401798989,1768378252454,-1665.51,0.000224,2]
[401798991,1768378252463,-300.0,0.00022466,2]
[401798993,1768378252473,-200.0,0.00022466,2]
[401798995,1768378252482,-750.0,0.00022466,2]
[401798997,1768378252492,-1864.52541442,0.00022466,2]
[401798999,1768378252501,-1082.98429516,0.00022621,2]
[401799001,1768378252509,-18780.42235644,0.00022782,2]
[401799002,1768378252518,-2000.0,0.00022904,7]
[401799004,1768378252529,-1041.66666667,0.00023,3]
[401799006,1768378252538,-1665.51,0.00023,2]
[401799008,1768378252547,-1400.0,0.00023014,2]
[401799010,1768378252557,-450.0,0.00023014,2]
[401799013,1768378252566,-250.0,0.00023014,2]
[401799014,1768378252575,-850.0,0.00023014,2]
[401799016,1768378252584,-491.12165105,0.00023069,27]
[401799018,1768378252593,-1300.0,0.00023142,2]
[401799020,1768378252602,-182.95072115,0.0002315,2]
[401799022,1768378252611,-600.0,0.00023157,2]
[401799024,1768378252620,-1300.0,0.00023189,2]
[401799026,1768378252629,-500.0,0.00023229,2]
[401799028,1768378252638,-600.0,0.00023237,2]
[401799030,1768378252647,-1300.0,0.00023245,2]
[401799032,1768378252656,-500.0,0.00023248,2]
[401799034,1768378252665,-600.0,0.00023252,2]
[401799036,1768378252674,-1300.0,0.00023267,2]
[401799038,1768378252683,-500.0,0.0002329,2]
[401799040,1768378252692,-500.0,0.00023315,2]
[401799042,1768378252700,-600.0,0.00023336,2]
[401799044,1768378252710,-600.0,0.00023368,2]
[401799046,1768378252719,-600.0,0.00023375,2]
[401799048,1768378252729,-600.0,0.00023395,2]
[401799050,1768378252739,-1300.0,0.00023414,2]
[401799052,1768378252748,-500.0,0.00023417,2]
[401799054,1768378252757,-6198.0,0.00023494,2]
[401799056,1768378252766,-1665.51,0.000235,2]
[401799058,1768378252775,-1300.0,0.00023552,2]
[401799060,1768378252785,-500.0,0.00023553,2]
[401799062,1768378252794,-600.0,0.00023562,2]
[401799064,1768378252803,-210.92385342,0.00023562,2]
[401799065,1768378252812,-950.0,0.00023562,2]
[401799067,1768378252822,-728.0,0.00023585,3]
[401799069,1768378252831,-500.0,0.00023585,2]
[401799071,1768378252840,-1300.0,0.00023588,2]
[401799073,1768378252849,-728.0,0.00023641,3]
[401799075,1768378252858,-600.0,0.00023661,2]
[401799077,1768378252867,-500.0,0.00023698,2]
[401799079,1768378252876,-253.24,0.000237,7]
[401799081,1768378252887,-267.88,0.000237,7]
[401799083,1768378252896,-600.0,0.00023702,2]
[401799085,1768378252906,-1300.0,0.00023708,2]
[401799087,1768378252915,-1300.0,0.00023717,2]
[401799089,1768378252924,-791.34915639,0.00023721,2]
[401799091,1768378252933,-1300.0,0.00023723,2]
[401799093,1768378252943,-1060.1,0.0002373,2]
[401799095,1768378252952,-491.12165105,0.00023741,28]
[401799097,1768378252961,-1300.0,0.00023794,2]
[401799099,1768378252971,-1300.0,0.00023807,2]
[401799101,1768378252980,-330.0,0.00023838,2]
[401799103,1768378252989,-500.0,0.00023844,2]
[401799105,1768378252999,-600.0,0.00023848,2]
[401799107,1768378253011,-1300.0,0.00023851,2]
[401799109,1768378253020,-901.46550708,0.00023865,2]
[401799111,1768378253029,-600.0,0.00023882,2]
[401799113,1768378253039,-500.0,0.00023888,2]
[401799115,1768378253049,-600.0,0.00023904,2]
[401799117,1768378253059,-1300.0,0.00023907,2]
[401799119,1768378253068,-1300.0,0.00023927,2]
[401799121,1768378253079,-600.0,0.00023959,2]
[401799123,1768378253090,-728.0,0.00023961,3]
[401799125,1768378253099,-1665.51,0.00024,2]
[401799127,1768378253108,-1025.12327186,0.00024,2]
[401799129,1768378253118,-1516.55774496,0.00024032,2]
[401799131,1768378253128,-1300.0,0.00024036,2]
[401799133,1768378253137,-522.88356834,0.00024074,2]
[401799135,1768378253147,-500.0,0.000241,2]
[401799137,1768378253156,-500.0,0.00024101,2]
[401799139,1768378253166,-500.0,0.00024107,2]
[401799141,1768378253175,-1601.4141805,0.0002411,2]
[401799143,1768378253185,-750.0,0.0002411,2]
[401799145,1768378253194,-1050.0,0.0002411,2]
[401799147,1768378253204,-500.0,0.00024147,2]
[401799149,1768378253215,-1300.0,0.00024173,2]
[401799151,1768378253224,-500.0,0.00024173,2]
[401799153,1768378253234,-600.0,0.00024186,2]
[401799155,1768378253243,-2113.56,0.000242,7]
[401799157,1768378253252,-1041.66666667,0.000242,7]
[401799159,1768378253263,-1000.0,0.00024207,10]
[401799161,1768378253272,-1000.0,0.00024207,10]
[401799163,1768378253282,-1000.0,0.00024207,10]
[401799164,1768378253292,-2000.0,0.00024219,7]
[401799165,1768378253302,-782.85006975,0.0002425,2]
[401799166,1768378253311,-600.0,0.00024267,2]
[401799167,1768378253407,-1300.0,0.00024268,2]
[401799168,1768378253417,-600.0,0.0002427,2]
[401799169,1768378253427,-728.0,0.00024281,3]
[401799170,1768378253437,-190.0,0.00024304,2]
[401799171,1768378253447,-1300.0,0.00024349,2]
[401799172,1768378253457,-500.0,0.00024389,2]
[401799173,1768378253467,-1300.0,0.0002439,2]
[401799174,1768378253477,-40340.44,0.000244,2]
[401799175,1768378253486,-4046.54,0.000244,14]
[401799176,1768378253496,-491.12165105,0.00024413,30]
[401799178,1768378253506,-1300.0,0.00024418,2]
[401799180,1768378253516,-500.0,0.00024426,2]
[401799182,1768378253526,-14150.53090947,0.00024428,2]
[401799184,1768378253536,-600.0,0.00024449,2]
[401799186,1768378253546,-500.0,0.00024458,2]
[401799188,1768378253556,-1300.0,0.00024466,2]
[401799190,1768378253566,-500.0,0.00024467,2]
[401799192,1768378253576,-499.3,0.00024469,2]
[401799194,1768378253586,-500.0,0.0002448,2]
[401799196,1768378253595,-600.0,0.00024493,2]
[401799198,1768378253604,-1665.51,0.000245,2]
[401799200,1768378253613,-600.0,0.000245,2]
[401799202,1768378253623,-600.0,0.00024508,2]
[401799204,1768378253633,-500.0,0.00024603,2]
[401799206,1768378253642,-500.0,0.00024605,2]
[401799208,1768378253652,-1300.0,0.00024612,2]
[401799210,1768378253661,-309.0,0.00024624,2]
[401799212,1768378253670,-900.0,0.00024658,2]
[401799213,1768378253680,-1150.0,0.00024658,2]
[401799216,1768378253689,-500.0,0.00024658,2]
[401799218,1768378253699,-1300.0,0.00024698,2]
[401799220,1768378253709,-1300.0,0.00024783,2]
[401799221,1768378253718,-500.0,0.00024795,2]
[401799223,1768378253727,-600.0,0.00024797,2]
[401799225,1768378253737,-500.0,0.00024808,2]
[401799228,1768378253747,-1300.0,0.00024816,2]
[401799230,1768378253757,-500.0,0.00024838,2]
[401799232,1768378253766,-395.0,0.00024849,2]
[401799234,1768378253776,-600.0,0.00024875,2]
[401799236,1768378253787,-500.0,0.00024892,2]
[401799238,1768378253797,-160.18656469,0.00024899,2]
[401799240,1768378253806,-169.388304,0.000249,7]
[401799241,1768378253815,-461.991157,0.000249,7]
[401799243,1768378253825,-461.991157,0.000249,7]
[401799245,1768378253835,-2297.615063,0.000249,7]
[401799248,1768378253845,-2297.615063,0.000249,7]
[401799249,1768378253854,-653058.728757,0.000249,2]
[401799252,1768378253864,-237.361203,0.000249,7]
[401799253,1768378253874,-237.361203,0.000249,7]
[401799255,1768378253883,-237.361203,0.000249,7]
[401799257,1768378253893,-237.361203,0.000249,7]
[401799259,1768378253903,-151.0,0.000249,7]
[401799261,1768378253912,-151.0,0.000249,7]
[401799263,1768378253921,-151.0,0.000249,7]
[401799265,1768378253931,-151.0,0.000249,7]
[401799267,1768378253940,-151.0,0.000249,7]
[401799269,1768378253949,-151.0,0.000249,2]
[401799271,1768378253958,-151.0,0.000249,7]
[401799273,1768378253968,-151.0,0.000249,2]
[401799275,1768378253977,-879.438014,0.000249,7]
[401799277,1768378253987,-879.438014,0.000249,7]
[401799279,1768378254000,-879.438014,0.000249,7]
[401799281,1768378254009,-879.438014,0.000249,7]
[401799283,1768378254019,-406.316369,0.000249,7]
[401799285,1768378254029,-406.316369,0.000249,7]
[401799287,1768378254041,-406.316369,0.000249,7]
[401799289,1768378254050,-406.316369,0.000249,7]
[401799291,1768378254059,-839.619726,0.000249,7]
[401799293,1768378254071,-839.619726,0.000249,7]
[401799295,1768378254080,-839.619726,0.000249,7]
[401799297,1768378254090,-839.619726,0.000249,7]
[401799299,1768378254100,-151.0,0.000249,7]
[401799301,1768378254109,-257.762103,0.000249,7]
[401799303,1768378254119,-151.0,0.000249,7]
[401799305,1768378254129,-151.0,0.000249,7]
[401799308,1768378254139,-151.3487,0.000249,7]
[401799309,1768378254149,-151.0,0.000249,7]
[401799311,1768378254158,-151.3487,0.000249,7]
[401799313,1768378254168,-285.638493,0.000249,7]
[401799315,1768378254178,-151.3487,0.000249,7]
[401799317,1768378254188,-633.503416,0.000249,7]
[401799319,1768378254197,-151.3487,0.000249,7]
[401799321,1768378254207,-633.503416,0.000249,7]
[401799323,1768378254217,-633.503416,0.000249,7]
[401799325,1768378254226,-633.503416,0.000249,7]
[401799328,1768378254236,-1300.0,0.00024931,2]
[401799330,1768378254246,-500.0,0.00024932,2]
[401799331,1768378254255,-1209.821329,0.0002498,5]
[401799333,1768378254264,-221.89401488,0.00024986,14]
[401799335,1768378254274,-600.0,0.00024994,2]
[401799338,1768378254284,-1665.51,0.00025,2]
[401799340,1768378254294,-167.76,0.00025,7]
[401799342,1768378254303,-1000.0,0.00025,5]
[401799344,1768378254313,-241.0,0.00025,2]
[401799346,1768378254323,-200.0,0.00025,17]
[401799348,1768378254333,-1019.0,0.00025,2]
[401799349,1768378254343,-417.0,0.00025029,2]
[401799352,1768378254352,-417.0,0.00025029,2]
[401799353,1768378254363,-715.0,0.00025029,2]
[401799355,1768378254372,-178.0,0.00025029,2]
[401799358,1768378254382,-1300.0,0.00025059,7]
[401799360,1768378254393,-500.0,0.00025069,2]
[401799361,1768378254403,-151.0,0.00025069,7]
[401799363,1768378254412,-151.0,0.00025069,7]
[401799365,1768378254421,-151.0,0.00025069,7]
[401799367,1768378254431,-151.0,0.00025069,7]
[401799369,1768378254440,-176.444531,0.00025069,7]
[401799371,1768378254449,-151.0,0.00025069,7]
[401799373,1768378254459,-487.891031,0.00025069,7]
[401799375,1768378254468,-487.891031,0.00025069,7]
[401799377,1768378254478,-487.891031,0.00025069,7]
[401799379,1768378254487,-487.891031,0.00025069,7]
[401799382,1768378254497,-1827.91578915,0.00025082,7]
[401799383,1768378254506,-491.12165105,0.00025085,30]
[401799385,1768378254516,-896.0966357,0.00025121,7]
[401799388,1768378254526,-455.0,0.00025126,2]
[401799389,1768378254536,-151.0,0.00025135,7]
[401799391,1768378254546,-190.428635,0.00025135,7]
[401799393,1768378254555,-190.428635,0.00025135,7]
[401799395,1768378254565,-190.428635,0.00025135,7]
[401799397,1768378254574,-190.428635,0.00025135,7]
[401799399,1768378254583,-151.0,0.00025135,7]
[401799401,1768378254593,-151.0,0.00025135,7]
[401799403,1768378254602,-701.437556,0.00025135,7]
[401799405,1768378254612,-701.437556,0.00025135,7]
[401799407,1768378254622,-701.437556,0.00025135,7]
[401799409,1768378254632,-701.437556,0.00025135,7]
[401799411,1768378254641,-170.849379,0.00025135,7]
[401799413,1768378254650,-1060.1,0.00025188,2]
[401799415,1768378254659,-253.24,0.000252,7]
[401799417,1768378254669,-267.88,0.000252,7]
[401799419,1768378254678,-250.0,0.00025205,2]
[401799421,1768378254688,-1186.74681137,0.00025205,2]
[401799423,1768378254697,-1250.0,0.00025205,2]
[401799425,1768378254707,-500.0,0.00025206,2]
[401799427,1768378254716,-500.0,0.00025343,2]
[401799429,1768378254725,-155.82028036,0.00025466,5]
[401799431,1768378254735,-500.0,0.0002548,2]
[401799433,1768378254743,-1665.51,0.000255,2]
[401799435,1768378254753,-2000.0,0.00025534,7]
[401799437,1768378254763,-500.0,0.00025617,2]
[401799439,1768378254772,-350.0,0.00025753,2]
[401799441,1768378254781,-1350.0,0.00025753,2]
[401799443,1768378254791,-500.0,0.00025754,2]
[401799445,1768378254800,-491.02165105,0.00025756,30]
[401799447,1768378254810,-2000.07602471,0.00025768,2]
[401799449,1768378254819,-3521.0,0.00025844,2]
[401799451,1768378254827,-728.0,0.0002589,3]
[401799453,1768378254837,-500.0,0.00025891,2]
[401799455,1768378254846,-18780.42235644,0.00025986,2]
[401799457,1768378254855,-1665.51,0.00026,2]
[401799459,1768378254864,-300.0,0.00026,20]
[401799461,1768378254874,-1019.0,0.00026,2]
[401799463,1768378254883,-500.0,0.00026028,2]
[401799465,1768378254893,-1637.34552995,0.00026032,2]
[401799467,1768378254902,-151.0,0.00026065,7]
[401799469,1768378254911,-490.347103,0.00026065,7]
[401799470,1768378254922,-490.347103,0.00026065,7]
[401799472,1768378254931,-490.347103,0.00026065,7]
[401799482,1768378255012,-490.347103,0.00026065,7]
[401799484,1768378255028,-151.0,0.00026065,7]
[401799486,1768378255038,-490.971226,0.00026065,7]
[401799488,1768378255047,-490.971226,0.00026065,7]
[401799490,1768378255057,-151.0,0.00026065,7]
[401799492,1768378255066,-490.971226,0.00026065,7]
[401799494,1768378255079,-158.985841,0.00026065,7]
[401799496,1768378255088,-490.971226,0.00026065,7]
[401799498,1768378255097,-505.094065,0.00026065,7]
[401799500,1768378255106,-505.094065,0.00026065,7]
[401799502,1768378255115,-505.094065,0.00026065,7]
[401799504,1768378255124,-505.094065,0.00026065,7]
[401799506,1768378255136,-2113.56,0.000261,7]
[401799508,1768378255146,-500.0,0.00026165,2]
[401799510,1768378255156,-450.0,0.00026301,2]
[401799512,1768378255165,-1450.0,0.00026301,2]
[401799514,1768378255174,-500.0,0.00026302,2]
[401799516,1768378255183,-500.0,0.00026439,2]
[401799518,1768378255193,-1665.51,0.000265,2]
[401799520,1768378255203,-160.0,0.00026538,3]
[401799521,1768378255212,-500.0,0.00026576,2]
[401799523,1768378255221,-1000.0,0.00026628,30]
[401799525,1768378255230,-1000.0,0.00026628,30]
[401799527,1768378255239,-1000.0,0.00026628,30]
[401799529,1768378255250,-715.0,0.00026628,30]
[401799531,1768378255259,-1060.1,0.00026647,2]
[401799533,1768378255270,-40340.44,0.000267,2]
[401799535,1768378255279,-4046.54,0.000267,14]
[401799537,1768378255288,-500.0,0.00026713,2]
[401799539,1768378255299,-5000.0,0.00026768,2]
[401799541,1768378255308,-550.0,0.00026849,2]
[401799543,1768378255318,-2000.0,0.00026849,7]
[401799545,1768378255327,-1550.93699331,0.00026849,2]
[401799547,1768378255338,-500.0,0.0002685,2]
[401799549,1768378255348,-14150.53090947,0.00026861,2]
[401799551,1768378255358,-160.0,0.00026899,3]
[401799553,1768378255367,-500.0,0.00026987,2]
[401799555,1768378255376,-1019.0,0.00027,2]
[401799557,1768378255386,-1665.51,0.000271,2]
[401799559,1768378255395,-500.0,0.00027124,2]
[401799561,1768378255404,-2916.3971575,0.00027177,2]
[401799563,1768378255414,-728.0,0.00027178,3]
[401799565,1768378255423,-195.0,0.00027178,14]
[401799567,1768378255432,-355.01455049,0.00027261,2]
[401799569,1768378255443,-650.0,0.00027397,5]
[401799571,1768378255452,-151.0,0.00027397,7]
[401799574,1768378255462,-151.0,0.00027397,7]
[401799575,1768378255472,-295.309906,0.00027397,7]
[401799577,1768378255481,-697.474609,0.00027397,3]
[401799579,1768378255491,-697.474609,0.00027397,3]
[401799581,1768378255500,-697.474609,0.00027397,3]
[401799584,1768378255509,-697.474609,0.00027397,3]
[401799585,1768378255518,-697.474609,0.00027397,3]
[401799588,1768378255528,-697.474609,0.00027397,3]
[401799589,1768378255538,-697.474609,0.00027397,3]
[401799591,1768378255547,-697.474609,0.00027397,3]
[401799593,1768378255556,-300.0,0.00027397,2]
[401799595,1768378255564,-300.0,0.00027397,2]
[401799597,1768378255574,-300.0,0.00027397,2]
[401799600,1768378255583,-300.0,0.00027397,2]
[401799601,1768378255593,-300.0,0.00027397,2]
[401799603,1768378255602,-300.0,0.00027397,2]
[401799605,1768378255611,-300.0,0.00027397,2]
[401799608,1768378255621,-300.0,0.00027397,2]
[401799610,1768378255633,-300.0,0.00027397,2]
[401799612,1768378255642,-500.0,0.00027397,5]
[401799613,1768378255652,-157.45506808,0.00027397,5]
[401799615,1768378255663,-515.68473116,0.00027397,5]
[401799617,1768378255672,-160.0,0.00027407,4]
[401799620,1768378255682,-2916.3971575,0.00027599,2]
[401799621,1768378255691,-253.24,0.000276,7]
[401799624,1768378255701,-267.88,0.000276,7]
[401799625,1768378255711,-1665.51,0.000276,2]